[Event "Titled Tuesday Blitz February 14 Early 2023"]
[White "Zaichenko, Daria"]
[Black "Davalos Prieto, Abel Justo"]
[WhiteFideId "4197453"]
[BlackFideId "5102766"]
[WhiteElo "2104"]
[BlackElo "2029"]
[Result "0-1"]
[Round "11"]
[TimeControl "180+2"]
[Date "2023.02.14"]
[WhiteClock "0:00:22"]
[BlackClock "0:00:12"]

1. e4 {[%clk 0:03:00]}  c5 {[%clk 0:02:59]} 2. Nf3 {[%clk 0:03:01]}  Nc6 {[%clk 0:03:00]} 3. d4 {[%clk 0:03:01]}  cxd4 {[%clk 0:03:00]} 4. Nxd4 {[%clk 0:03:01]}  Nf6 {[%clk 0:03:01]} 5. Nc3 {[%clk 0:03:01]}  d6 {[%clk 0:03:01]} 6. Bc4 {[%clk 0:02:57]}  Qb6 {[%clk 0:03:00]} 7. Nb3 {[%clk 0:02:50]}  e6 {[%clk 0:02:59]} 8. Be3 {[%clk 0:02:48]}  Qc7 {[%clk 0:02:59]} 9. O-O {[%clk 0:02:45]}  Be7 {[%clk 0:03:00]} 10. f4 {[%clk 0:02:43]}  O-O {[%clk 0:02:59]} 11. a3 {[%clk 0:02:37]}  a6 {[%clk 0:02:59]} 12. Qf3 {[%clk 0:02:36]}  b5 {[%clk 0:02:59]} 13. Be2 {[%clk 0:02:36]}  Bb7 {[%clk 0:02:59]} 14. Rad1 {[%clk 0:02:33]}  b4 {[%clk 0:02:58]} 15. Na4 {[%clk 0:02:30]}  Nd7 {[%clk 0:02:44]} 16. Qg3 {[%clk 0:02:17]}  bxa3 {[%clk 0:02:22]} 17. bxa3 {[%clk 0:02:16]}  Na5 {[%clk 0:02:16]} 18. e5 {[%clk 0:01:39]}  Bd5 {[%clk 0:01:33]} 19. exd6 {[%clk 0:01:35]}  Bxd6 {[%clk 0:01:32]} 20. Nd4 {[%clk 0:01:15]}  Nf6 {[%clk 0:01:22]} 21. Bd3 {[%clk 0:01:07]}  Nc4 {[%clk 0:01:21]} 22. Bc1 {[%clk 0:00:59]}  Bxa3 {[%clk 0:01:12]} 23. Bxa3 {[%clk 0:00:54]}  Nxa3 {[%clk 0:01:10]} 24. Bxh7+ {[%clk 0:00:52]}  Kxh7 {[%clk 0:00:59]} 25. Qxa3 {[%clk 0:00:51]}  Rfc8 {[%clk 0:00:54]} 26. Qh3+ {[%clk 0:00:48]}  Kg8 {[%clk 0:00:53]} 27. Rc1 {[%clk 0:00:48]}  Qa7 {[%clk 0:00:49]} 28. c3 {[%clk 0:00:47]}  Rc4 {[%clk 0:00:43]} 29. Nb2 {[%clk 0:00:43]}  Rxd4 {[%clk 0:00:43]} 30. cxd4 {[%clk 0:00:43]}  Qxd4+ {[%clk 0:00:44]} 31. Rf2 {[%clk 0:00:43]}  Ne4 {[%clk 0:00:42]} 32. Rf1 {[%clk 0:00:42]}  Nxf2 {[%clk 0:00:40]} 33. Rxf2 {[%clk 0:00:42]}  Rb8 {[%clk 0:00:39]} 34. Qd3 {[%clk 0:00:34]}  Qxd3 {[%clk 0:00:29]} 35. Nxd3 {[%clk 0:00:34]}  Rb1+ {[%clk 0:00:28]} 36. Rf1 {[%clk 0:00:34]}  Rxf1+ {[%clk 0:00:27]} 37. Kxf1 {[%clk 0:00:34]}  Bc4 {[%clk 0:00:26]} 38. Ke2 {[%clk 0:00:35]}  Kf8 {[%clk 0:00:26]} 39. Kd2 {[%clk 0:00:35]}  Bxd3 {[%clk 0:00:24]} 40. Kxd3 {[%clk 0:00:35]}  Ke7 {[%clk 0:00:24]} 41. Kc4 {[%clk 0:00:29]}  Kd6 {[%clk 0:00:25]} 42. g4 {[%clk 0:00:29]}  f6 {[%clk 0:00:21]} 43. h4 {[%clk 0:00:29]}  e5 {[%clk 0:00:20]} 44. g5 {[%clk 0:00:24]}  exf4 {[%clk 0:00:18]} 45. gxf6 {[%clk 0:00:25]}  gxf6 {[%clk 0:00:18]} 46. Kd4 {[%clk 0:00:25]}  a5 {[%clk 0:00:16]} 47. Ke4 {[%clk 0:00:24]}  a4 {[%clk 0:00:15]} 48. Kf5 {[%clk 0:00:23]}  a3 {[%clk 0:00:14]} 49. h5 {[%clk 0:00:23]}  a2 {[%clk 0:00:13]} 50. h6 {[%clk 0:00:22]}  a1=Q {[%clk 0:00:14]} 51. Kg6 {[%clk 0:00:21]}  Qb1+ {[%clk 0:00:13]} 52. Kg7 {[%clk 0:00:21]}  f3 {[%clk 0:00:12]} 53. h7 {[%clk 0:00:21]}  Qxh7+ {[%clk 0:00:11]} 54. Kxh7 {[%clk 0:00:21]}  f2 {[%clk 0:00:12]} 55. Kg7 {[%clk 0:00:22]}  f1=Q {[%clk 0:00:12]} 0-1


[Site "https://www.chess.com"]

[Event "Titled Tuesday Blitz February 14 Early 2023"]
[White "Sadovsky, Artem"]
[Black "Levitan, Caleb Levi"]
[WhiteFideId "4155840"]
[BlackFideId "14332620"]
[WhiteElo "2276"]
[BlackElo "2129"]
[Result "1-0"]
[Round "11"]
[TimeControl "180+2"]
[Date "2023.02.14"]
[WhiteClock "0:00:49"]
[BlackClock "0:00:04"]

1. Nf3 {[%clk 0:02:39]}  Nf6 {[%clk 0:02:59]} 2. e3 {[%clk 0:02:39]}  e6 {[%clk 0:02:55]} 3. c4 {[%clk 0:02:40]}  d5 {[%clk 0:02:55]} 4. Be2 {[%clk 0:02:39]}  c5 {[%clk 0:02:39]} 5. O-O {[%clk 0:02:39]}  Nc6 {[%clk 0:02:39]} 6. cxd5 {[%clk 0:02:35]}  exd5 {[%clk 0:02:39]} 7. d4 {[%clk 0:02:33]}  Bd6 {[%clk 0:02:38]} 8. dxc5 {[%clk 0:02:25]}  Bxc5 {[%clk 0:02:38]} 9. a3 {[%clk 0:02:25]}  a5 {[%clk 0:02:29]} 10. b3 {[%clk 0:02:17]}  O-O {[%clk 0:02:27]} 11. Bb2 {[%clk 0:02:10]}  Be6 {[%clk 0:02:26]} 12. Nc3 {[%clk 0:02:02]}  Rc8 {[%clk 0:02:25]} 13. Nb5 {[%clk 0:02:01]}  h6 {[%clk 0:02:00]} 14. Nfd4 {[%clk 0:01:55]}  Nxd4 {[%clk 0:01:55]} 15. Nxd4 {[%clk 0:01:54]}  Qb6 {[%clk 0:01:48]} 16. Rc1 {[%clk 0:01:42]}  Ne4 {[%clk 0:01:42]} 17. Qd3 {[%clk 0:01:40]}  Bxd4 {[%clk 0:01:23]} 18. Bxd4 {[%clk 0:01:40]}  Qd6 {[%clk 0:01:20]} 19. a4 {[%clk 0:01:39]}  Qb4 {[%clk 0:01:02]} 20. Rfd1 {[%clk 0:01:27]}  Nc5 {[%clk 0:00:43]} 21. Rxc5 {[%clk 0:01:22]}  Rxc5 {[%clk 0:00:42]} 22. Bxc5 {[%clk 0:01:20]}  Qxc5 {[%clk 0:00:42]} 23. Qb5 {[%clk 0:01:21]}  Rc8 {[%clk 0:00:37]} 24. Qxc5 {[%clk 0:01:09]}  Rxc5 {[%clk 0:00:36]} 25. f3 {[%clk 0:01:09]}  Rc3 {[%clk 0:00:33]} 26. Rd3 {[%clk 0:01:09]}  Rxd3 {[%clk 0:00:33]} 27. Bxd3 {[%clk 0:01:10]}  d4 {[%clk 0:00:31]} 28. exd4 {[%clk 0:01:09]}  Bxb3 {[%clk 0:00:31]} 29. Bb5 {[%clk 0:01:09]}  Kf8 {[%clk 0:00:32]} 30. Kf2 {[%clk 0:01:08]}  Ke7 {[%clk 0:00:32]} 31. Ke3 {[%clk 0:01:05]}  Kd6 {[%clk 0:00:33]} 32. f4 {[%clk 0:01:00]}  f6 {[%clk 0:00:26]} 33. g3 {[%clk 0:00:58]}  Kd5 {[%clk 0:00:24]} 34. Kd3 {[%clk 0:00:57]}  b6 {[%clk 0:00:21]} 35. Be8 {[%clk 0:00:53]}  Kd6 {[%clk 0:00:20]} 36. Kc3 {[%clk 0:00:53]}  Bd1 {[%clk 0:00:20]} 37. Bb5 {[%clk 0:00:53]}  Kd5 {[%clk 0:00:19]} 38. Be8 {[%clk 0:00:51]}  Ke4 {[%clk 0:00:17]} 39. Bc6+ {[%clk 0:00:51]}  Ke3 {[%clk 0:00:16]} 40. d5 {[%clk 0:00:52]}  Bf3 {[%clk 0:00:13]} 41. Kc4 {[%clk 0:00:52]}  f5 {[%clk 0:00:06]} 42. Kb5 {[%clk 0:00:52]}  Kd4 {[%clk 0:00:06]} 43. d6 {[%clk 0:00:52]}  Be2+ {[%clk 0:00:05]} 44. Kxb6 {[%clk 0:00:52]}  Bc4 {[%clk 0:00:02]} 45. d7 {[%clk 0:00:53]}  Kc3 {[%clk 0:00:02]} 46. d8=Q {[%clk 0:00:53]}  Kb4 {[%clk 0:00:03]} 47. Qc7 {[%clk 0:00:54]}  Kb3 {[%clk 0:00:03]} 48. Bb5 {[%clk 0:00:55]}  Bd5 {[%clk 0:00:03]} 49. Qxg7 {[%clk 0:00:54]}  h5 {[%clk 0:00:02]} 50. Qe5 {[%clk 0:00:54]}  Bf3 {[%clk 0:00:01]} 51. Kc5 {[%clk 0:00:54]}  h4 {[%clk 0:00:01]} 52. Qe3+ {[%clk 0:00:49]}  Kb2 {[%clk 0:00:01]} 53. Qxf3 {[%clk 0:00:49]}  hxg3 {[%clk 0:00:02]} 54. Kd4 {[%clk 0:00:48]}  Ka2 {[%clk 0:00:03]} 55. Qc3 {[%clk 0:00:48]}  gxh2 {[%clk 0:00:03]} 56. Bc4+ {[%clk 0:00:48]}  Kb1 {[%clk 0:00:03]} 57. Kd3 {[%clk 0:00:49]}  h1=Q {[%clk 0:00:03]} 58. Qc2+ {[%clk 0:00:48]}  Ka1 {[%clk 0:00:04]} 59. Qa2# {[%clk 0:00:49]} 1-0


[Site "https://www.chess.com"]

[Event "Titled Tuesday Blitz February 14 Early 2023"]
[White "Carrasco Miranda, Andres"]
[Black "Rose, Felix"]
[WhiteFideId "3405990"]
[BlackFideId "5105722"]
[WhiteElo "2240"]
[BlackElo "2091"]
[Result "1-0"]
[Round "11"]
[TimeControl "180+2"]
[Date "2023.02.14"]
[WhiteClock "0:00:07"]
[BlackClock "0:00:10"]

1. d4 {[%clk 0:03:00]}  d5 {[%clk 0:02:59]} 2. c4 {[%clk 0:03:00]}  e6 {[%clk 0:03:00]} 3. g3 {[%clk 0:02:59]}  Nf6 {[%clk 0:03:00]} 4. Bg2 {[%clk 0:02:59]}  dxc4 {[%clk 0:02:59]} 5. Nf3 {[%clk 0:02:58]}  a6 {[%clk 0:03:00]} 6. O-O {[%clk 0:02:57]}  Nc6 {[%clk 0:03:00]} 7. e3 {[%clk 0:02:57]}  Rb8 {[%clk 0:03:01]} 8. Nfd2 {[%clk 0:02:55]}  Na5 {[%clk 0:02:38]} 9. Qa4+ {[%clk 0:02:32]}  c6 {[%clk 0:02:29]} 10. Nxc4 {[%clk 0:02:32]}  Nxc4 {[%clk 0:02:28]} 11. Qxc4 {[%clk 0:02:33]}  Bd6 {[%clk 0:02:25]} 12. e4 {[%clk 0:02:30]}  e5 {[%clk 0:02:21]} 13. f4 {[%clk 0:02:13]}  Qb6 {[%clk 0:02:06]} 14. fxe5 {[%clk 0:01:56]}  Bxe5 {[%clk 0:02:06]} 15. Be3 {[%clk 0:01:57]}  O-O {[%clk 0:01:58]} 16. Nc3 {[%clk 0:01:57]}  Ng4 {[%clk 0:01:53]} 17. Bf4 {[%clk 0:01:11]}  Be6 {[%clk 0:01:32]} 18. Qe2 {[%clk 0:01:05]}  Qxd4+ {[%clk 0:01:24]} 19. Kh1 {[%clk 0:01:04]}  Bxf4 {[%clk 0:01:19]} 20. Rxf4 {[%clk 0:01:04]}  Ne5 {[%clk 0:01:11]} 21. Rd1 {[%clk 0:00:59]}  Qb4 {[%clk 0:01:08]} 22. Qh5 {[%clk 0:00:56]}  f6 {[%clk 0:00:47]} 23. Rh4 {[%clk 0:00:55]}  h6 {[%clk 0:00:45]} 24. Qe2 {[%clk 0:00:51]}  Bc4 {[%clk 0:00:37]} 25. Qc2 {[%clk 0:00:46]}  Rbd8 {[%clk 0:00:32]} 26. Rf1 {[%clk 0:00:38]}  Bd3 {[%clk 0:00:27]} 27. Qc1 {[%clk 0:00:34]}  Bxf1 {[%clk 0:00:27]} 28. Bxf1 {[%clk 0:00:34]}  Qd4 {[%clk 0:00:20]} 29. Rf4 {[%clk 0:00:14]}  Qd2 {[%clk 0:00:20]} 30. Qb1 {[%clk 0:00:15]}  Kh8 {[%clk 0:00:17]} 31. a3 {[%clk 0:00:14]}  b5 {[%clk 0:00:16]} 32. Bg2 {[%clk 0:00:14]}  Nd3 {[%clk 0:00:15]} 33. Rf1 {[%clk 0:00:13]}  Qe3 {[%clk 0:00:12]} 34. Qc2 {[%clk 0:00:11]}  Rfe8 {[%clk 0:00:11]} 35. b4 {[%clk 0:00:07]}  c5 {[%clk 0:00:10]} 36. bxc5 {[%clk 0:00:06]}  Nxc5 {[%clk 0:00:09]} 37. Nd5 {[%clk 0:00:07]}  Rxd5 {[%clk 0:00:09]} 38. exd5 {[%clk 0:00:07]}  Nd3 {[%clk 0:00:08]} 39. d6 {[%clk 0:00:06]}  Ne5 {[%clk 0:00:09]} 40. Qc7 {[%clk 0:00:05]}  Qd4 {[%clk 0:00:07]} 41. Re1 {[%clk 0:00:05]}  Re6 {[%clk 0:00:08]} 42. Qc8+ {[%clk 0:00:04]}  Kh7 {[%clk 0:00:08]} 43. Qxe6 {[%clk 0:00:05]}  Ng4 {[%clk 0:00:08]} 44. Be4+ {[%clk 0:00:04]}  g6 {[%clk 0:00:07]} 45. Qf7+ {[%clk 0:00:04]}  Kh8 {[%clk 0:00:08]} 46. Qe8+ {[%clk 0:00:05]}  Kg7 {[%clk 0:00:08]} 47. Qe7+ {[%clk 0:00:05]}  Kh8 {[%clk 0:00:09]} 48. Qf8+ {[%clk 0:00:05]}  Kh7 {[%clk 0:00:09]} 49. Bxg6+ {[%clk 0:00:05]}  Kxg6 {[%clk 0:00:10]} 50. Qg8+ {[%clk 0:00:05]}  Kh5 {[%clk 0:00:10]} 51. Qf7+ {[%clk 0:00:05]}  Kg5 {[%clk 0:00:10]} 52. h4+ {[%clk 0:00:05]}  Kf5 {[%clk 0:00:09]} 53. Qd7+ {[%clk 0:00:05]}  Kg6 {[%clk 0:00:10]} 54. Qe8+ {[%clk 0:00:05]}  Kf5 {[%clk 0:00:10]} 55. Qd7+ {[%clk 0:00:05]}  Kg6 {[%clk 0:00:10]} 56. Qe8+ {[%clk 0:00:05]}  Kf5 {[%clk 0:00:10]} 57. Rf1+ {[%clk 0:00:06]}  Nf2+ {[%clk 0:00:09]} 58. Kg2 {[%clk 0:00:06]}  Kg4 {[%clk 0:00:10]} 59. Rxf2 {[%clk 0:00:06]}  Qe4+ {[%clk 0:00:10]} 60. Qxe4+ {[%clk 0:00:06]}  Kh5 {[%clk 0:00:10]} 61. Qf5# {[%clk 0:00:07]} 1-0


[Site "https://www.chess.com"]

[Event "Titled Tuesday Blitz February 14 Early 2023"]
[White "Gedgafov, Chamal"]
[Black "Harriott, Tyrell"]
[WhiteFideId "34130621"]
[BlackFideId "2086484"]
[WhiteElo "2118"]
[BlackElo "1889"]
[Result "0-1"]
[Round "11"]
[TimeControl "180+2"]
[Date "2023.02.14"]
[WhiteClock "0:00:10"]
[BlackClock "0:00:36"]

1. d4 {[%clk 0:02:55]}  e6 {[%clk 0:02:55]} 2. c4 {[%clk 0:02:54]}  d5 {[%clk 0:02:55]} 3. Nc3 {[%clk 0:02:54]}  f5 {[%clk 0:02:54]} 4. Bf4 {[%clk 0:02:52]}  c6 {[%clk 0:02:50]} 5. e3 {[%clk 0:02:53]}  Ne7 {[%clk 0:02:49]} 6. Nf3 {[%clk 0:02:53]}  Ng6 {[%clk 0:02:50]} 7. Bd3 {[%clk 0:02:51]}  Bd6 {[%clk 0:02:46]} 8. g3 {[%clk 0:02:49]}  O-O {[%clk 0:02:45]} 9. Qb3 {[%clk 0:02:49]}  Be7 {[%clk 0:02:42]} 10. h4 {[%clk 0:02:38]}  Nh8 {[%clk 0:02:40]} 11. Rc1 {[%clk 0:02:33]}  Nf7 {[%clk 0:02:40]} 12. cxd5 {[%clk 0:02:29]}  exd5 {[%clk 0:02:40]} 13. h5 {[%clk 0:02:12]}  Nd6 {[%clk 0:02:38]} 14. Kf1 {[%clk 0:02:00]}  Kh8 {[%clk 0:02:34]} 15. Ne5 {[%clk 0:01:53]}  Ne4 {[%clk 0:02:28]} 16. Bxe4 {[%clk 0:01:44]}  fxe4 {[%clk 0:02:25]} 17. Nxe4 {[%clk 0:01:42]}  Nd7 {[%clk 0:02:13]} 18. Nd2 {[%clk 0:01:17]}  Nxe5 {[%clk 0:02:10]} 19. dxe5 {[%clk 0:01:16]}  Bg5 {[%clk 0:02:03]} 20. Kg2 {[%clk 0:01:09]}  Qe7 {[%clk 0:02:01]} 21. Nf3 {[%clk 0:01:07]}  Bh6 {[%clk 0:01:57]} 22. Nh4 {[%clk 0:00:50]}  Bg4 {[%clk 0:01:52]} 23. Qd3 {[%clk 0:00:42]}  Qe6 {[%clk 0:01:36]} 24. f3 {[%clk 0:00:35]}  Bxh5 {[%clk 0:01:34]} 25. g4 {[%clk 0:00:32]}  Bxf4 {[%clk 0:01:28]} 26. exf4 {[%clk 0:00:30]}  Be8 {[%clk 0:01:21]} 27. Qe3 {[%clk 0:00:22]}  d4 {[%clk 0:01:04]} 28. Qe4 {[%clk 0:00:20]}  c5 {[%clk 0:01:01]} 29. Nf5 {[%clk 0:00:18]}  Bc6 {[%clk 0:00:56]} 30. Qd3 {[%clk 0:00:17]}  g6 {[%clk 0:00:52]} 31. Rxh7+ {[%clk 0:00:12]}  Kxh7 {[%clk 0:00:50]} 32. Rh1+ {[%clk 0:00:13]}  Kg8 {[%clk 0:00:50]} 33. Nh6+ {[%clk 0:00:11]}  Kg7 {[%clk 0:00:49]} 34. g5 {[%clk 0:00:09]}  Rxf4 {[%clk 0:00:47]} 35. Kg3 {[%clk 0:00:09]}  Rxf3+ {[%clk 0:00:40]} 36. Qxf3 {[%clk 0:00:09]}  Bxf3 {[%clk 0:00:40]} 37. Kxf3 {[%clk 0:00:10]}  Qxe5 {[%clk 0:00:36]} 0-1


[Site "https://www.chess.com"]

[Event "Titled Tuesday Blitz February 14 Early 2023"]
[White "Meera, Sai"]
[Black "Buscar, Michael"]
[WhiteFideId "5004357"]
[BlackFideId "2603616"]
[WhiteElo "2064"]
[BlackElo "2041"]
[Result "1-0"]
[Round "11"]
[TimeControl "180+2"]
[Date "2023.02.14"]
[WhiteClock "0:00:22"]
[BlackClock "0:00:10"]

1. e4 {[%clk 0:03:00]}  c5 {[%clk 0:02:57]} 2. Nf3 {[%clk 0:02:58]}  Nc6 {[%clk 0:02:57]} 3. d4 {[%clk 0:02:58]}  cxd4 {[%clk 0:02:58]} 4. Nxd4 {[%clk 0:02:59]}  Nf6 {[%clk 0:02:58]} 5. Nc3 {[%clk 0:02:58]}  e5 {[%clk 0:02:57]} 6. Ndb5 {[%clk 0:02:59]}  h6 {[%clk 0:02:58]} 7. Nd5 {[%clk 0:02:55]}  Nxd5 {[%clk 0:02:57]} 8. exd5 {[%clk 0:02:55]}  a6 {[%clk 0:02:58]} 9. Nc3 {[%clk 0:02:50]}  Nb8 {[%clk 0:02:58]} 10. Be3 {[%clk 0:02:50]}  d6 {[%clk 0:02:58]} 11. Bd3 {[%clk 0:02:50]}  Nd7 {[%clk 0:02:52]} 12. O-O {[%clk 0:02:51]}  Be7 {[%clk 0:02:52]} 13. f4 {[%clk 0:02:51]}  exf4 {[%clk 0:02:43]} 14. Bxf4 {[%clk 0:02:51]}  O-O {[%clk 0:02:43]} 15. Ne4 {[%clk 0:02:49]}  Ne5 {[%clk 0:02:39]} 16. Bxe5 {[%clk 0:02:48]}  dxe5 {[%clk 0:02:37]} 17. d6 {[%clk 0:02:47]}  Bg5 {[%clk 0:02:32]} 18. Nxg5 {[%clk 0:02:42]}  Qxg5 {[%clk 0:02:25]} 19. Qf3 {[%clk 0:02:38]}  Rb8 {[%clk 0:02:00]} 20. Bc4 {[%clk 0:02:36]}  Qg6 {[%clk 0:01:43]} 21. Rad1 {[%clk 0:02:34]}  Be6 {[%clk 0:01:41]} 22. Bxe6 {[%clk 0:02:32]}  Qxe6 {[%clk 0:01:41]} 23. d7 {[%clk 0:02:32]}  f6 {[%clk 0:01:35]} 24. Qa3 {[%clk 0:02:26]}  Rfd8 {[%clk 0:01:24]} 25. Rd6 {[%clk 0:02:26]}  Qf7 {[%clk 0:01:25]} 26. Rfd1 {[%clk 0:02:27]}  Qc4 {[%clk 0:01:13]} 27. c3 {[%clk 0:02:14]}  Kf7 {[%clk 0:01:07]} 28. R6d2 {[%clk 0:02:05]}  Qe6 {[%clk 0:01:01]} 29. Qc5 {[%clk 0:02:02]}  b6 {[%clk 0:00:56]} 30. Qe3 {[%clk 0:02:01]}  Rb7 {[%clk 0:00:43]} 31. Rd6 {[%clk 0:01:59]}  Qc4 {[%clk 0:00:41]} 32. Qf3 {[%clk 0:01:55]}  Rc7 {[%clk 0:00:29]} 33. Qh5+ {[%clk 0:01:05]}  Kf8 {[%clk 0:00:27]} 34. Qf5 {[%clk 0:00:57]}  Qf4 {[%clk 0:00:19]} 35. Qh7 {[%clk 0:00:47]}  Qe3+ {[%clk 0:00:17]} 36. Kh1 {[%clk 0:00:46]}  Rcxd7 {[%clk 0:00:16]} 37. Qh8+ {[%clk 0:00:22]}  Kf7 {[%clk 0:00:11]} 38. Rxd7+ {[%clk 0:00:22]}  Kg6 {[%clk 0:00:11]} 39. Qxg7+ {[%clk 0:00:22]}  Kh5 {[%clk 0:00:10]} 40. Rxd8 {[%clk 0:00:22]} 1-0


[Site "https://www.chess.com"]

[Event "Titled Tuesday Blitz February 14 Early 2023"]
[White "Clawitter, Craig"]
[Black "Tsotsonava, Elene"]
[WhiteFideId "2023105"]
[BlackFideId "13615939"]
[WhiteElo "2050"]
[BlackElo "2053"]
[Result "0-1"]
[Round "11"]
[TimeControl "180+2"]
[Date "2023.02.14"]
[WhiteClock "0:00:31"]
[BlackClock "0:01:52"]

1. e4 {[%clk 0:03:00]}  c5 {[%clk 0:02:57]} 2. Nf3 {[%clk 0:03:01]}  e6 {[%clk 0:02:58]} 3. d4 {[%clk 0:03:01]}  cxd4 {[%clk 0:02:59]} 4. Nxd4 {[%clk 0:03:02]}  Nc6 {[%clk 0:02:59]} 5. Nc3 {[%clk 0:03:01]}  Qc7 {[%clk 0:03:00]} 6. Be3 {[%clk 0:03:01]}  a6 {[%clk 0:03:00]} 7. Qd2 {[%clk 0:03:01]}  Nf6 {[%clk 0:03:00]} 8. O-O-O {[%clk 0:03:00]}  Be7 {[%clk 0:03:01]} 9. f3 {[%clk 0:02:57]}  b5 {[%clk 0:03:01]} 10. g4 {[%clk 0:02:55]}  Nxd4 {[%clk 0:03:01]} 11. Qxd4 {[%clk 0:02:52]}  Bb7 {[%clk 0:03:01]} 12. g5 {[%clk 0:02:42]}  Nh5 {[%clk 0:03:02]} 13. f4 {[%clk 0:02:42]}  Rc8 {[%clk 0:02:50]} 14. Be2 {[%clk 0:02:17]}  b4 {[%clk 0:02:50]} 15. Bxh5 {[%clk 0:02:06]}  bxc3 {[%clk 0:02:50]} 16. b3 {[%clk 0:01:37]}  Qa5 {[%clk 0:02:44]} 17. Kb1 {[%clk 0:01:28]}  O-O {[%clk 0:02:31]} 18. Qxd7 {[%clk 0:01:23]}  Rc7 {[%clk 0:02:31]} 19. Qa4 {[%clk 0:01:01]}  Qxa4 {[%clk 0:02:19]} 20. bxa4 {[%clk 0:01:02]}  Bxe4 {[%clk 0:02:18]} 21. Rhe1 {[%clk 0:00:52]}  Rb8+ {[%clk 0:02:18]} 22. Ka1 {[%clk 0:00:48]}  Bxc2 {[%clk 0:02:12]} 23. Rc1 {[%clk 0:00:37]}  Bxa4 {[%clk 0:01:59]} 24. Bd4 {[%clk 0:00:31]}  Ba3 {[%clk 0:01:52]} 0-1


[Site "https://www.chess.com"]

[Event "Titled Tuesday Blitz February 14 Early 2023"]
[White "Prudnykova, Olga"]
[Black "Ciuffoletti, Paolo"]
[WhiteFideId "14121093"]
[BlackFideId "807630"]
[WhiteElo "2268"]
[BlackElo "2106"]
[Result "1-0"]
[Round "11"]
[TimeControl "180+2"]
[Date "2023.02.14"]
[WhiteClock "0:01:24"]
[BlackClock "0:00:14"]

1. e4 {[%clk 0:03:00]}  c5 {[%clk 0:02:59]} 2. Nf3 {[%clk 0:03:00]}  Nc6 {[%clk 0:02:58]} 3. Nc3 {[%clk 0:03:00]}  Nf6 {[%clk 0:02:58]} 4. e5 {[%clk 0:03:00]}  Ng4 {[%clk 0:02:57]} 5. Qe2 {[%clk 0:03:00]}  Qc7 {[%clk 0:02:57]} 6. Nd5 {[%clk 0:02:59]}  Qb8 {[%clk 0:02:56]} 7. d4 {[%clk 0:02:58]}  cxd4 {[%clk 0:02:51]} 8. Bf4 {[%clk 0:02:57]}  e6 {[%clk 0:02:46]} 9. h3 {[%clk 0:02:56]}  Nh6 {[%clk 0:02:18]} 10. Bxh6 {[%clk 0:02:56]}  exd5 {[%clk 0:02:17]} 11. Bf4 {[%clk 0:02:56]}  Bb4+ {[%clk 0:02:11]} 12. Bd2 {[%clk 0:02:56]}  Bxd2+ {[%clk 0:02:01]} 13. Qxd2 {[%clk 0:02:57]}  Nxe5 {[%clk 0:01:58]} 14. Ke2 {[%clk 0:02:34]}  O-O {[%clk 0:01:46]} 15. Nxd4 {[%clk 0:02:26]}  Nc4 {[%clk 0:01:34]} 16. Qc3 {[%clk 0:02:14]}  Qf4 {[%clk 0:01:19]} 17. Re1 {[%clk 0:01:33]}  d6 {[%clk 0:00:49]} 18. Kd1 {[%clk 0:01:32]}  Qxf2 {[%clk 0:00:40]} 19. Bd3 {[%clk 0:01:26]}  Be6 {[%clk 0:00:19]} 20. Rhf1 {[%clk 0:01:26]}  Qxg2 {[%clk 0:00:17]} 21. Rg1 {[%clk 0:01:25]}  Qh2 {[%clk 0:00:15]} 22. Nxe6 {[%clk 0:01:24]}  fxe6 {[%clk 0:00:14]} 23. Qxg7# {[%clk 0:01:24]} 1-0


[Site "https://www.chess.com"]

[Event "Titled Tuesday Blitz February 14 Early 2023"]
[White "Vaglio Munoz, Jaime"]
[Black "Broca Jimenez, Fernando"]
[WhiteFideId "6500145"]
[BlackFideId "5104742"]
[WhiteElo "2174"]
[BlackElo "2075"]
[Result "1-0"]
[Round "11"]
[TimeControl "180+2"]
[Date "2023.02.14"]
[WhiteClock "0:01:23"]
[BlackClock "0:01:15"]

1. d4 {[%clk 0:03:00]}  c5 {[%clk 0:03:00]} 2. dxc5 {[%clk 0:02:58]}  e6 {[%clk 0:02:57]} 3. a3 {[%clk 0:02:58]}  Bxc5 {[%clk 0:02:54]} 4. Nf3 {[%clk 0:02:58]}  Nf6 {[%clk 0:02:53]} 5. b4 {[%clk 0:02:57]}  Be7 {[%clk 0:02:52]} 6. c4 {[%clk 0:02:57]}  d5 {[%clk 0:02:52]} 7. e3 {[%clk 0:02:56]}  dxc4 {[%clk 0:02:50]} 8. Qxd8+ {[%clk 0:02:55]}  Bxd8 {[%clk 0:02:51]} 9. Bxc4 {[%clk 0:02:55]}  O-O {[%clk 0:02:51]} 10. Bb2 {[%clk 0:02:55]}  Nc6 {[%clk 0:02:51]} 11. Nc3 {[%clk 0:02:54]}  Be7 {[%clk 0:02:45]} 12. Rd1 {[%clk 0:02:51]}  Rd8 {[%clk 0:02:44]} 13. Ke2 {[%clk 0:02:50]}  Bd7 {[%clk 0:02:43]} 14. Bb3 {[%clk 0:02:37]}  Rac8 {[%clk 0:02:40]} 15. h3 {[%clk 0:02:21]}  Be8 {[%clk 0:02:36]} 16. g4 {[%clk 0:02:19]}  Bd6 {[%clk 0:02:34]} 17. g5 {[%clk 0:02:16]}  Nh5 {[%clk 0:02:29]} 18. Ne4 {[%clk 0:02:15]}  Bc7 {[%clk 0:02:23]} 19. Rxd8 {[%clk 0:02:07]}  Rxd8 {[%clk 0:02:22]} 20. Rg1 {[%clk 0:02:08]}  Ne7 {[%clk 0:02:16]} 21. Rc1 {[%clk 0:02:01]}  Bc6 {[%clk 0:02:11]} 22. Ned2 {[%clk 0:01:57]}  Bb6 {[%clk 0:02:05]} 23. a4 {[%clk 0:01:56]}  Rc8 {[%clk 0:02:01]} 24. b5 {[%clk 0:01:54]}  Bxf3+ {[%clk 0:02:00]} 25. Nxf3 {[%clk 0:01:53]}  Rxc1 {[%clk 0:02:01]} 26. Bxc1 {[%clk 0:01:52]}  g6 {[%clk 0:01:58]} 27. Bd2 {[%clk 0:01:51]}  Ng7 {[%clk 0:01:58]} 28. a5 {[%clk 0:01:50]}  Bc5 {[%clk 0:01:56]} 29. Ne5 {[%clk 0:01:50]}  Ngf5 {[%clk 0:01:53]} 30. Nd7 {[%clk 0:01:44]}  Bd6 {[%clk 0:01:46]} 31. Bc3 {[%clk 0:01:43]}  Ng7 {[%clk 0:01:25]} 32. Nf6+ {[%clk 0:01:42]}  Kf8 {[%clk 0:01:25]} 33. Nxh7+ {[%clk 0:01:41]}  Kg8 {[%clk 0:01:26]} 34. Nf6+ {[%clk 0:01:41]}  Kf8 {[%clk 0:01:26]} 35. Ne4 {[%clk 0:01:41]}  Bc7 {[%clk 0:01:22]} 36. a6 {[%clk 0:01:39]}  bxa6 {[%clk 0:01:21]} 37. bxa6 {[%clk 0:01:39]}  Ngf5 {[%clk 0:01:20]} 38. Bb4 {[%clk 0:01:34]}  Ke8 {[%clk 0:01:18]} 39. f4 {[%clk 0:01:31]}  Kd8 {[%clk 0:01:18]} 40. Kd3 {[%clk 0:01:30]}  Nc6 {[%clk 0:01:17]} 41. Bc5 {[%clk 0:01:28]}  Nb8 {[%clk 0:01:16]} 42. Bc4 {[%clk 0:01:27]}  Bb6 {[%clk 0:01:15]} 43. Bxb6+ {[%clk 0:01:23]} 1-0


[Site "https://www.chess.com"]